[Event "FIDE World Rapid Chess Championship 2021"]
[White "Kobalia, Mikhail"]
[Black "Kuzmicz, Krystian"]
[WhiteFideId "4119150"]
[BlackFideId "1119125"]
[WhiteElo "2543"]
[BlackElo "2314"]
[Result "1-0"]
[Round "04"]
[TimeControl "900+10"]
[Date "2021.12.26"]
[WhiteClock "0:00:58"]
[BlackClock "0:00:36"]

1. e4 {[%clk 0:15:26]}  c5 {[%clk 0:15:13]} 2. Nf3 {[%clk 0:15:26]}  Nc6 {[%clk 0:15:13]} 3. Bb5 {[%clk 0:15:26]}  a6 {[%clk 0:15:13]} 4. Bxc6 {[%clk 0:15:26]}  dxc6 {[%clk 0:15:13]} 5. d3 {[%clk 0:15:26]}  Qc7 {[%clk 0:15:13]} 6. e5 {[%clk 0:15:26]}  Bg4 {[%clk 0:15:13]} 7. Nbd2 {[%clk 0:14:43]}  e6 {[%clk 0:14:58]} 8. h3 {[%clk 0:14:43]}  Bh5 {[%clk 0:14:58]} 9. O-O {[%clk 0:12:49]}  Ne7 {[%clk 0:14:15]} 10. Re1 {[%clk 0:12:49]}  Nd5 {[%clk 0:14:15]} 11. Ne4 {[%clk 0:12:49]}  Bxf3 {[%clk 0:13:24]} 12. Qxf3 {[%clk 0:12:46]}  Qxe5 {[%clk 0:09:18]} 13. Bd2 {[%clk 0:12:54]}  Be7 {[%clk 0:09:18]} 14. c4 {[%clk 0:11:47]}  Nf6 {[%clk 0:09:18]} 15. Bc3 {[%clk 0:11:47]}  Qc7 {[%clk 0:06:26]} 16. Bxf6 {[%clk 0:11:16]}  gxf6 {[%clk 0:06:26]} 17. Nxf6+ {[%clk 0:11:16]}  Bxf6 {[%clk 0:06:26]} 18. Qxf6 {[%clk 0:11:16]}  Rg8 {[%clk 0:06:38]} 19. Re3 {[%clk 0:11:33]}  Qe7 {[%clk 0:06:38]} 20. Qh6 {[%clk 0:10:21]}  Qg5 {[%clk 0:05:42]} 21. Qxg5 {[%clk 0:10:21]}  Rxg5 {[%clk 0:05:42]} 22. f4 {[%clk 0:10:21]}  Rf5 {[%clk 0:04:46]} 23. Rf1 {[%clk 0:09:56]}  Kd7 {[%clk 0:04:46]} 24. g4 {[%clk 0:09:56]}  Rf6 {[%clk 0:04:46]} 25. Kg2 {[%clk 0:09:56]}  b6 {[%clk 0:04:46]} 26. Re5 {[%clk 0:09:56]}  Rd8 {[%clk 0:02:28]} 27. Rf3 {[%clk 0:10:08]}  Kc7 {[%clk 0:01:57]} 28. g5 {[%clk 0:10:13]}  Rg6 {[%clk 0:00:35]} 29. h4 {[%clk 0:09:11]}  Rgg8 {[%clk 0:00:35]} 30. f5 {[%clk 0:09:11]}  Kd6 {[%clk 0:00:35]} 31. Re4 {[%clk 0:09:11]}  e5 {[%clk 0:00:35]} 32. Kh3 {[%clk 0:07:22]}  Rde8 {[%clk 0:00:37]} 33. Rg3 {[%clk 0:07:20]}  Re7 {[%clk 0:00:37]} 34. Kg4 {[%clk 0:07:08]}  h6 {[%clk 0:00:23]} 35. f6 {[%clk 0:07:08]}  Re6 {[%clk 0:00:23]} 36. Kf5 {[%clk 0:07:08]}  hxg5 {[%clk 0:00:23]} 37. hxg5 {[%clk 0:07:08]}  Rh8 {[%clk 0:00:23]} 38. Ree3 {[%clk 0:04:40]}  Rh4 {[%clk 0:00:26]} 39. Rg4 {[%clk 0:04:40]}  Rh2 {[%clk 0:00:26]} 40. Rf3 {[%clk 0:04:40]}  Re8 {[%clk 0:00:26]} 41. g6 {[%clk 0:02:09]}  fxg6+ {[%clk 0:00:12]} 42. Rxg6 {[%clk 0:02:18]}  Rf8 {[%clk 0:00:17]} 43. f7+ {[%clk 0:02:18]}  Ke7 {[%clk 0:00:17]} 44. Re6+ {[%clk 0:02:18]}  Kxf7 {[%clk 0:00:17]} 45. Kxe5+ {[%clk 0:02:18]}  Kg7 {[%clk 0:00:17]} 46. Rg3+ {[%clk 0:02:18]}  Kh7 {[%clk 0:00:17]} 47. b3 {[%clk 0:00:59]}  Rxa2 {[%clk 0:00:12]} 48. Rxc6 {[%clk 0:00:58]}  Re2+ {[%clk 0:00:36]} 49. Kd6 {[%clk 0:00:58]}  Rf7 {[%clk 0:00:36]} 50. Rxb6 {[%clk 0:00:58]}  Rf6+ {[%clk 0:00:36]} 51. Kxc5 {[%clk 0:00:58]}  Re5+ {[%clk 0:00:36]} 52. Kd4 {[%clk 0:00:58]}  Rxb6 {[%clk 0:00:36]} 53. Kxe5 {[%clk 0:00:58]}  Rxb3 {[%clk 0:00:36]} 54. Kd4 {[%clk 0:00:58]}  a5 {[%clk 0:00:36]} 55. Rg5 {[%clk 0:00:58]}  Ra3 {[%clk 0:00:36]} 56. c5 {[%clk 0:00:58]}  a4 {[%clk 0:00:36]} 57. c6 {[%clk 0:00:58]} 1-0


[Site "http://www.Chess.com"]

[Event "FIDE World Rapid Chess Championship 2021"]
[White "Klimkowski, Jan"]
[Black "Fridman, Daniel"]
[WhiteFideId "21856222"]
[BlackFideId "11600454"]
[WhiteElo "2211"]
[BlackElo "2542"]
[Result "1/2-1/2"]
[Round "04"]
[TimeControl "900+10"]
[Date "2021.12.26"]
[WhiteClock "0:00:58"]
[BlackClock "0:02:41"]

1. e4 {[%clk 0:15:30]}  c6 {[%clk 0:15:34]} 2. d4 {[%clk 0:15:30]}  d5 {[%clk 0:15:34]} 3. e5 {[%clk 0:15:30]}  c5 {[%clk 0:15:34]} 4. dxc5 {[%clk 0:15:30]}  e6 {[%clk 0:15:34]} 5. a3 {[%clk 0:15:30]}  Bxc5 {[%clk 0:15:34]} 6. b4 {[%clk 0:15:30]}  Be7 {[%clk 0:15:34]} 7. Bb2 {[%clk 0:15:30]}  a5 {[%clk 0:15:34]} 8. b5 {[%clk 0:15:30]}  Nd7 {[%clk 0:15:34]} 9. Nf3 {[%clk 0:15:30]}  f6 {[%clk 0:15:34]} 10. Bd3 {[%clk 0:15:30]}  fxe5 {[%clk 0:15:45]} 11. Nxe5 {[%clk 0:14:43]}  Nxe5 {[%clk 0:15:45]} 12. Bxe5 {[%clk 0:14:43]}  Bf6 {[%clk 0:15:45]} 13. Qh5+ {[%clk 0:14:43]}  g6 {[%clk 0:15:45]} 14. Qe2 {[%clk 0:14:43]}  Bxe5 {[%clk 0:15:45]} 15. Qxe5 {[%clk 0:14:43]}  Qf6 {[%clk 0:15:45]} 16. f4 {[%clk 0:13:07]}  Qxe5+ {[%clk 0:16:02]} 17. fxe5 {[%clk 0:13:07]}  Nh6 {[%clk 0:16:02]} 18. Nd2 {[%clk 0:13:07]}  O-O {[%clk 0:16:02]} 19. Nf3 {[%clk 0:13:07]}  Bd7 {[%clk 0:14:29]} 20. Kd2 {[%clk 0:12:59]}  Rf4 {[%clk 0:14:21]} 21. Rhf1 {[%clk 0:10:43]}  Raf8 {[%clk 0:14:01]} 22. h3 {[%clk 0:10:43]}  Kg7 {[%clk 0:14:08]} 23. c3 {[%clk 0:08:09]}  Nf5 {[%clk 0:14:08]} 24. Ng1 {[%clk 0:07:28]}  g5 {[%clk 0:12:14]} 25. Rxf4 {[%clk 0:04:26]}  gxf4 {[%clk 0:10:24]} 26. Ne2 {[%clk 0:04:04]}  Nh4 {[%clk 0:10:24]} 27. Rf1 {[%clk 0:04:04]}  Nxg2 {[%clk 0:10:18]} 28. Rf2 {[%clk 0:01:35]}  f3 {[%clk 0:10:18]} 29. Nd4 {[%clk 0:01:35]}  Nh4 {[%clk 0:07:51]} 30. Ke3 {[%clk 0:01:50]}  Kh6 {[%clk 0:07:51]} 31. Nxf3 {[%clk 0:01:50]}  Nf5+ {[%clk 0:07:51]} 32. Kd2 {[%clk 0:01:54]}  Ng3 {[%clk 0:05:29]} 33. Ke3 {[%clk 0:01:54]}  Nh5 {[%clk 0:05:29]} 34. Nd4 {[%clk 0:01:39]}  Rxf2 {[%clk 0:04:18]} 35. Kxf2 {[%clk 0:01:39]}  Nf4 {[%clk 0:04:18]} 36. Bf1 {[%clk 0:01:39]}  Kg5 {[%clk 0:04:18]} 37. Nf3+ {[%clk 0:01:44]}  Kf5 {[%clk 0:04:18]} 38. Ke3 {[%clk 0:01:44]}  Be8 {[%clk 0:04:18]} 39. Nd4+ {[%clk 0:00:58]}  Kxe5 {[%clk 0:02:41]} 40. Nf3+ {[%clk 0:00:58]}  Kf5 {[%clk 0:02:41]} 41. Nd4+ {[%clk 0:00:58]}  Ke5 {[%clk 0:02:41]} 42. Nf3+ {[%clk 0:00:58]} 1/2-1/2


[Site "http://www.Chess.com"]

[Event "FIDE World Rapid Chess Championship 2021"]
[White "Zvjaginsev, Vadim"]
[Black "Samunenkov, Ihor"]
[WhiteFideId "4113403"]
[BlackFideId "14187086"]
[WhiteElo "2539"]
[BlackElo "2259"]
[Result "0-1"]
[Round "04"]
[TimeControl "900+10"]
[Date "2021.12.26"]
[WhiteClock "0:02:29"]
[BlackClock "0:00:41"]

1. c4 {[%clk 0:15:17]}  c5 {[%clk 0:15:14]} 2. Nf3 {[%clk 0:15:17]}  Nc6 {[%clk 0:15:14]} 3. Nc3 {[%clk 0:15:17]}  e5 {[%clk 0:15:14]} 4. e3 {[%clk 0:15:17]}  Nf6 {[%clk 0:15:14]} 5. Be2 {[%clk 0:15:17]}  d5 {[%clk 0:15:14]} 6. d4 {[%clk 0:15:17]}  exd4 {[%clk 0:14:05]} 7. exd4 {[%clk 0:15:23]}  cxd4 {[%clk 0:14:05]} 8. Nxd4 {[%clk 0:15:23]}  dxc4 {[%clk 0:14:05]} 9. Nxc6 {[%clk 0:15:23]}  Qxd1+ {[%clk 0:14:05]} 10. Kxd1 {[%clk 0:15:01]}  bxc6 {[%clk 0:12:37]} 11. Bxc4 {[%clk 0:15:01]}  Bg4+ {[%clk 0:12:37]} 12. f3 {[%clk 0:15:01]}  O-O-O {[%clk 0:11:13]} 13. Bd2 {[%clk 0:13:54]}  Bh5 {[%clk 0:11:13]} 14. g4 {[%clk 0:13:59]}  Bg6 {[%clk 0:09:24]} 15. h4 {[%clk 0:11:36]}  h5 {[%clk 0:08:37]} 16. g5 {[%clk 0:11:41]}  Nd7 {[%clk 0:08:37]} 17. Ke2 {[%clk 0:11:41]}  Bc5 {[%clk 0:06:33]} 18. Rhe1 {[%clk 0:11:37]}  Kb7 {[%clk 0:04:57]} 19. Na4 {[%clk 0:11:37]}  Bd4 {[%clk 0:04:57]} 20. Bc3 {[%clk 0:09:10]}  Ne5 {[%clk 0:04:08]} 21. Nc5+ {[%clk 0:07:47]}  Kb6 {[%clk 0:03:33]} 22. Na4+ {[%clk 0:06:45]}  Kc7 {[%clk 0:03:33]} 23. b3 {[%clk 0:06:45]}  Rhe8 {[%clk 0:00:59]} 24. Bxd4 {[%clk 0:06:56]}  Nxc4+ {[%clk 0:00:59]} 25. Kf2 {[%clk 0:06:56]}  Rxe1 {[%clk 0:00:59]} 26. Rxe1 {[%clk 0:06:56]}  Rxd4 {[%clk 0:00:59]} 27. bxc4 {[%clk 0:06:56]}  Rxc4 {[%clk 0:00:59]} 28. Re7+ {[%clk 0:06:56]}  Kd6 {[%clk 0:00:59]} 29. Rxa7 {[%clk 0:06:56]}  Rc2+ {[%clk 0:00:59]} 30. Kg3 {[%clk 0:06:46]}  Rxa2 {[%clk 0:01:02]} 31. Ra8 {[%clk 0:06:46]}  Kc7 {[%clk 0:00:46]} 32. Ra7+ {[%clk 0:06:46]}  Kb8 {[%clk 0:00:46]} 33. Ra6 {[%clk 0:06:46]}  Bc2 {[%clk 0:00:46]} 34. Rb6+ {[%clk 0:06:46]}  Kc7 {[%clk 0:00:46]} 35. Rb2 {[%clk 0:06:46]}  Rxb2 {[%clk 0:00:46]} 36. Nxb2 {[%clk 0:06:46]}  Kd6 {[%clk 0:00:46]} 37. Nc4+ {[%clk 0:06:06]}  Ke6 {[%clk 0:00:34]} 38. Kf4 {[%clk 0:05:57]}  Bg6 {[%clk 0:00:34]} 39. Ke3 {[%clk 0:05:57]}  Kd5 {[%clk 0:00:34]} 40. Nb6+ {[%clk 0:05:57]}  Kc5 {[%clk 0:00:17]} 41. Nd7+ {[%clk 0:04:50]}  Kd6 {[%clk 0:00:17]} 42. Nb6 {[%clk 0:04:50]}  c5 {[%clk 0:00:17]} 43. Nc4+ {[%clk 0:04:58]}  Kd5 {[%clk 0:00:28]} 44. Nb6+ {[%clk 0:04:58]}  Ke6 {[%clk 0:00:28]} 45. Na4 {[%clk 0:04:58]}  Kd6 {[%clk 0:00:28]} 46. Nc3 {[%clk 0:04:58]}  Bf5 {[%clk 0:00:28]} 47. Kf4 {[%clk 0:03:39]}  g6 {[%clk 0:00:20]} 48. Ke3 {[%clk 0:03:39]}  Ke5 {[%clk 0:00:20]} 49. Na4 {[%clk 0:03:39]}  Kd5 {[%clk 0:00:20]} 50. Nb6+ {[%clk 0:03:39]}  Kc6 {[%clk 0:00:20]} 51. Na4 {[%clk 0:03:39]}  Kb5 {[%clk 0:00:20]} 52. Nc3+ {[%clk 0:03:39]}  Kc4 {[%clk 0:00:20]} 53. Ne2 {[%clk 0:02:58]}  Kb3 {[%clk 0:00:15]} 54. Kd2 {[%clk 0:02:47]}  Bd7 {[%clk 0:00:14]} 55. Nc3 {[%clk 0:02:29]}  Bc6 {[%clk 0:00:44]} 56. f4 {[%clk 0:02:29]}  Kc4 {[%clk 0:00:44]} 57. Ne2 {[%clk 0:02:29]}  Bf3 {[%clk 0:00:44]} 58. Nc1 {[%clk 0:02:29]}  Kd4 {[%clk 0:00:44]} 59. Nb3+ {[%clk 0:02:29]}  Ke4 {[%clk 0:00:44]} 60. Nxc5+ {[%clk 0:02:29]}  Kxf4 {[%clk 0:00:44]} 61. Nd3+ {[%clk 0:02:29]}  Kg3 {[%clk 0:00:44]} 62. Ke3 {[%clk 0:02:29]}  Bd5 {[%clk 0:00:44]} 63. Nf4 {[%clk 0:02:29]}  Bc4 {[%clk 0:00:41]} 64. Kd4 {[%clk 0:02:29]} 0-1


[Site "http://www.Chess.com"]

[Event "FIDE World Rapid Chess Championship 2021"]
[White "Gabuzyan, Hovhannes"]
[Black "Suleymanli, Aydin"]
[WhiteFideId "13303732"]
[BlackFideId "13413937"]
[WhiteElo "2535"]
[BlackElo "2202"]
[Result "0-1"]
[Round "04"]
[TimeControl "900+10"]
[Date "2021.12.26"]
[WhiteClock "0:13:25"]
[BlackClock "0:07:11"]

1. Nf3 {[%clk 0:15:28]}  d5 {[%clk 0:15:19]} 2. g3 {[%clk 0:15:28]}  Bf5 {[%clk 0:15:19]} 3. Bg2 {[%clk 0:15:28]}  e6 {[%clk 0:15:19]} 4. c4 {[%clk 0:15:28]}  c6 {[%clk 0:15:19]} 5. cxd5 {[%clk 0:15:28]}  exd5 {[%clk 0:15:19]} 6. O-O {[%clk 0:15:28]}  Nd7 {[%clk 0:15:19]} 7. d3 {[%clk 0:15:28]}  Ngf6 {[%clk 0:15:19]} 8. Nc3 {[%clk 0:15:28]}  Bc5 {[%clk 0:14:00]} 9. e4 {[%clk 0:16:13]}  dxe4 {[%clk 0:14:00]} 10. dxe4 {[%clk 0:16:13]}  Bg4 {[%clk 0:14:00]} 11. h3 {[%clk 0:16:13]}  Bxf3 {[%clk 0:14:00]} 12. Bxf3 {[%clk 0:16:13]}  O-O {[%clk 0:14:00]} 13. Bf4 {[%clk 0:15:12]}  Qe7 {[%clk 0:13:28]} 14. Qc2 {[%clk 0:15:15]}  Ne5 {[%clk 0:13:29]} 15. Be2 {[%clk 0:15:15]}  Ng6 {[%clk 0:13:29]} 16. Bg5 {[%clk 0:15:15]}  Qe5 {[%clk 0:13:29]} 17. Kg2 {[%clk 0:14:38]}  Qxg5 {[%clk 0:13:54]} 18. f4 {[%clk 0:13:23]}  Qh6 {[%clk 0:13:54]} 19. e5 {[%clk 0:13:23]}  Nd7 {[%clk 0:13:54]} 20. Ne4 {[%clk 0:13:23]}  Be7 {[%clk 0:13:54]} 21. Rad1 {[%clk 0:13:23]}  Nb6 {[%clk 0:13:54]} 22. Qb3 {[%clk 0:13:23]}  Rfd8 {[%clk 0:13:54]} 23. a4 {[%clk 0:13:23]}  Nf8 {[%clk 0:13:54]} 24. a5 {[%clk 0:13:23]}  Nd5 {[%clk 0:13:54]} 25. Bc4 {[%clk 0:13:23]}  Qe6 {[%clk 0:13:54]} 26. Kh2 {[%clk 0:13:23]}  b5 {[%clk 0:13:09]} 27. axb6 {[%clk 0:13:59]}  axb6 {[%clk 0:13:09]} 28. Nc3 {[%clk 0:13:59]}  b5 {[%clk 0:13:17]} 29. Bxd5 {[%clk 0:14:14]}  cxd5 {[%clk 0:13:17]} 30. Nxd5 {[%clk 0:14:14]}  Bc5 {[%clk 0:13:17]} 31. Rd2 {[%clk 0:14:21]}  Rd7 {[%clk 0:11:20]} 32. Rc1 {[%clk 0:14:21]}  Be3 {[%clk 0:11:20]} 33. f5 {[%clk 0:14:21]}  Qh6 {[%clk 0:11:20]} 34. e6 {[%clk 0:14:21]}  Bxd2 {[%clk 0:09:50]} 35. Rc6 {[%clk 0:14:00]}  Qh5 {[%clk 0:09:39]} 36. g4 {[%clk 0:14:00]}  Qh4 {[%clk 0:09:39]} 37. Kg2 {[%clk 0:14:00]}  Qe1 {[%clk 0:09:12]} 38. exd7 {[%clk 0:13:25]}  Qe2+ {[%clk 0:09:12]} 39. Kg3 {[%clk 0:13:25]}  Be1+ {[%clk 0:09:12]} 40. Kf4 {[%clk 0:13:25]}  Nxd7 {[%clk 0:09:12]} 41. Rc7 {[%clk 0:13:25]}  Re8 {[%clk 0:07:11]} 0-1


[Site "http://www.Chess.com"]

[Event "FIDE World Rapid Chess Championship 2021"]
[White "Mastrovasilis, Dimitrios"]
[Black "Yunusov, Mukhammad"]
[WhiteFideId "4202694"]
[BlackFideId "14700930"]
[WhiteElo "2534"]
[BlackElo "1832"]
[Result "1-0"]
[Round "04"]
[TimeControl "900+10"]
[Date "2021.12.26"]
[WhiteClock "0:01:02"]
[BlackClock "0:00:09"]

1. e4 {[%clk 0:15:17]}  c5 {[%clk 0:15:00]} 2. Nf3 {[%clk 0:15:17]}  d6 {[%clk 0:15:00]} 3. Bb5+ {[%clk 0:15:17]}  Bd7 {[%clk 0:15:00]} 4. Bxd7+ {[%clk 0:15:17]}  Qxd7 {[%clk 0:15:00]} 5. O-O {[%clk 0:15:17]}  Nc6 {[%clk 0:15:00]} 6. c3 {[%clk 0:15:17]}  Nf6 {[%clk 0:15:00]} 7. Qe2 {[%clk 0:15:17]}  e6 {[%clk 0:15:11]} 8. d4 {[%clk 0:14:27]}  Be7 {[%clk 0:15:11]} 9. dxc5 {[%clk 0:14:27]}  dxc5 {[%clk 0:15:11]} 10. Bf4 {[%clk 0:13:24]}  Rd8 {[%clk 0:13:55]} 11. Na3 {[%clk 0:13:24]}  Qd3 {[%clk 0:13:11]} 12. Rfe1 {[%clk 0:11:42]}  O-O {[%clk 0:13:11]} 13. Nc4 {[%clk 0:11:42]}  Qxe2 {[%clk 0:13:11]} 14. Rxe2 {[%clk 0:11:42]}  b5 {[%clk 0:11:29]} 15. Nce5 {[%clk 0:11:31]}  Nxe5 {[%clk 0:11:15]} 16. Nxe5 {[%clk 0:11:31]}  Bd6 {[%clk 0:11:15]} 17. h3 {[%clk 0:10:53]}  Bxe5 {[%clk 0:09:35]} 18. Bxe5 {[%clk 0:10:53]}  Rd3 {[%clk 0:09:35]} 19. a4 {[%clk 0:10:53]}  b4 {[%clk 0:10:01]} 20. cxb4 {[%clk 0:08:41]}  cxb4 {[%clk 0:09:55]} 21. Rc1 {[%clk 0:08:41]}  Nd7 {[%clk 0:09:55]} 22. Bf4 {[%clk 0:08:41]}  e5 {[%clk 0:04:58]} 23. Be3 {[%clk 0:08:21]}  a5 {[%clk 0:04:58]} 24. Rc7 {[%clk 0:08:21]}  Ra8 {[%clk 0:02:46]} 25. Rec2 {[%clk 0:08:09]}  Nf6 {[%clk 0:00:37]} 26. Rc8+ {[%clk 0:04:48]}  Rd8 {[%clk 0:00:37]} 27. Rxa8 {[%clk 0:04:48]}  Rxa8 {[%clk 0:00:37]} 28. f3 {[%clk 0:04:48]}  Ne8 {[%clk 0:00:14]} 29. Bb6 {[%clk 0:03:09]}  f6 {[%clk 0:00:14]} 30. Rc5 {[%clk 0:03:09]}  Ra6 {[%clk 0:00:14]} 31. Bxa5 {[%clk 0:03:09]}  b3 {[%clk 0:00:14]} 32. Kf2 {[%clk 0:03:09]}  Nd6 {[%clk 0:00:14]} 33. Bc7 {[%clk 0:01:34]}  Ne8 {[%clk 0:00:18]} 34. Ba5 {[%clk 0:01:34]}  Nd6 {[%clk 0:00:18]} 35. Ke2 {[%clk 0:01:34]}  Kf7 {[%clk 0:00:18]} 36. Kd3 {[%clk 0:01:34]}  Kg6 {[%clk 0:00:18]} 37. Rd5 {[%clk 0:01:34]}  Nb7 {[%clk 0:00:18]} 38. Bb4 {[%clk 0:01:34]}  Rxa4 {[%clk 0:00:18]} 39. Kc3 {[%clk 0:01:34]}  Ra1 {[%clk 0:00:28]} 40. Rd7 {[%clk 0:00:52]}  Na5 {[%clk 0:00:28]} 41. Bxa5 {[%clk 0:00:52]}  Rxa5 {[%clk 0:00:28]} 42. Kxb3 {[%clk 0:00:52]}  Ra1 {[%clk 0:00:28]} 43. Rd2 {[%clk 0:00:52]}  f5 {[%clk 0:00:28]} 44. exf5+ {[%clk 0:00:52]}  Kxf5 {[%clk 0:00:28]} 45. Kc4 {[%clk 0:00:52]}  h5 {[%clk 0:00:28]} 46. b4 {[%clk 0:00:52]}  g5 {[%clk 0:00:28]} 47. b5 {[%clk 0:00:52]}  Rb1 {[%clk 0:00:28]} 48. Rd3 {[%clk 0:00:52]}  g4 {[%clk 0:00:28]} 49. hxg4+ {[%clk 0:00:38]}  hxg4 {[%clk 0:01:26]} 50. Rb3 {[%clk 0:00:38]}  Rc1+ {[%clk 0:01:13]} 51. Kd3 {[%clk 0:00:45]}  gxf3 {[%clk 0:00:08]} 52. gxf3 {[%clk 0:01:02]}  Kf4 {[%clk 0:00:08]} 53. b6 {[%clk 0:01:02]}  Rc8 {[%clk 0:00:08]} 54. b7 {[%clk 0:01:02]}  Rb8 {[%clk 0:00:08]} 55. Kc4 {[%clk 0:01:02]}  Kg3 {[%clk 0:00:08]} 56. Kd5 {[%clk 0:01:02]}  Kf4 {[%clk 0:00:08]} 57. Kc6 {[%clk 0:01:02]}  Rg8 {[%clk 0:00:09]} 58. Kc7 {[%clk 0:01:02]}  Rg7+ {[%clk 0:00:09]} 59. Kb6 {[%clk 0:01:02]}  Rg8 {[%clk 0:00:09]} 60. Ka7 {[%clk 0:01:02]} 1-0


[Site "http://www.Chess.com"]

[Event "FIDE World Rapid Chess Championship 2021"]
[White "Kantor, Gergely"]
[Black "Karjakin, Sergey"]
[WhiteFideId "751499"]
[BlackFideId "14109603"]
[WhiteElo "2454"]
[BlackElo "2757"]
[Result "1-0"]
[Round "04"]
[TimeControl "900+10"]
[Date "2021.12.26"]
[WhiteClock "0:00:00"]
[BlackClock "0:03:51"]

1. d4 {[%clk 0:15:00]}  Nf6 {[%clk 0:15:00]} 2. c4 {[%clk 0:15:00]}  e6 {[%clk 0:15:00]} 3. Nf3 {[%clk 0:15:00]}  b6 {[%clk 0:15:00]} 4. g3 {[%clk 0:15:00]}  Ba6 {[%clk 0:15:00]} 5. Qc2 {[%clk 0:15:00]}  c5 {[%clk 0:15:00]} 6. d5 {[%clk 0:15:00]}  exd5 {[%clk 0:15:00]} 7. cxd5 {[%clk 0:15:00]}  Bb7 {[%clk 0:15:00]} 8. Bg2 {[%clk 0:15:00]}  Nxd5 {[%clk 0:15:00]} 9. O-O {[%clk 0:15:00]}  Be7 {[%clk 0:15:00]} 10. Rd1 {[%clk 0:15:00]}  Nc6 {[%clk 0:15:00]} 11. Qf5 {[%clk 0:15:00]}  Nf6 {[%clk 0:15:00]} 12. e4 {[%clk 0:15:00]}  g6 {[%clk 0:15:00]} 13. Qf4 {[%clk 0:15:00]}  O-O {[%clk 0:15:38]} 14. e5 {[%clk 0:15:01]}  Nh5 {[%clk 0:15:38]} 15. Qc4 {[%clk 0:15:01]}  d5 {[%clk 0:15:38]} 16. exd6 {[%clk 0:15:01]}  Bxd6 {[%clk 0:15:38]} 17. Nc3 {[%clk 0:15:01]}  Qb8 {[%clk 0:15:38]} 18. Bh6 {[%clk 0:14:06]}  Re8 {[%clk 0:14:22]} 19. Nb5 {[%clk 0:11:12]}  Be7 {[%clk 0:12:44]} 20. g4 {[%clk 0:03:15]}  Na5 {[%clk 0:10:49]} 21. Qc3 {[%clk 0:03:15]}  Bf6 {[%clk 0:10:49]} 22. Qd2 {[%clk 0:03:15]}  Nc4 {[%clk 0:10:15]} 23. Qc1 {[%clk 0:01:53]}  a6 {[%clk 0:10:15]} 24. Nc3 {[%clk 0:01:53]}  Ng7 {[%clk 0:08:35]} 25. g5 {[%clk 0:01:00]}  Bd8 {[%clk 0:08:35]} 26. Nd5 {[%clk 0:01:00]}  Nd6 {[%clk 0:08:01]} 27. Qc3 {[%clk 0:00:05]}  Ngf5 {[%clk 0:08:01]} 28. Nh4 {[%clk 0:00:05]}  Nb5 {[%clk 0:08:01]} 29. Nf6+ {[%clk 0:00:00]}  Kh8 {[%clk 0:06:14]} 30. Qc4 {[%clk 0:00:00]}  Bxf6 {[%clk 0:06:14]} 31. Nxf5 {[%clk 0:00:00]}  Re6 {[%clk 0:03:51]} 32. gxf6 {[%clk 0:00:00]}  gxf5 {[%clk 0:03:51]} 33. Bg7+ {[%clk 0:00:00]}  Kg8 {[%clk 0:03:51]} 34. Qh4 {[%clk 0:00:00]}  Nd4 {[%clk 0:03:51]} 35. Rxd4 {[%clk 0:00:00]} 1-0


[Site "http://www.Chess.com"]

[Event "FIDE World Rapid Chess Championship 2021"]
[White "Oparin, Grigoriy"]
[Black "Puranik, Abhimanyu"]
[WhiteFideId "24125890"]
[BlackFideId "5061245"]
[WhiteElo "2725"]
[BlackElo "2472"]
[Result "1/2-1/2"]
[Round "04"]
[TimeControl "900+10"]
[Date "2021.12.26"]
[WhiteClock "0:00:28"]
[BlackClock "0:00:49"]

1. d4 {[%clk 0:15:31]}  Nf6 {[%clk 0:15:27]} 2. c4 {[%clk 0:15:31]}  g6 {[%clk 0:15:27]} 3. Nf3 {[%clk 0:15:31]}  Bg7 {[%clk 0:15:27]} 4. g3 {[%clk 0:15:31]}  c6 {[%clk 0:15:27]} 5. Bg2 {[%clk 0:15:31]}  d5 {[%clk 0:15:27]} 6. O-O {[%clk 0:15:31]}  O-O {[%clk 0:15:27]} 7. Qa4 {[%clk 0:15:31]}  dxc4 {[%clk 0:15:27]} 8. Qxc4 {[%clk 0:15:31]}  Bf5 {[%clk 0:15:27]} 9. Nc3 {[%clk 0:15:31]}  a5 {[%clk 0:15:27]} 10. Qb3 {[%clk 0:15:14]}  b5 {[%clk 0:15:29]} 11. Bf4 {[%clk 0:15:14]}  a4 {[%clk 0:13:41]} 12. Qd1 {[%clk 0:15:14]}  a3 {[%clk 0:13:41]} 13. b3 {[%clk 0:10:57]}  Ne4 {[%clk 0:13:51]} 14. Rc1 {[%clk 0:10:57]}  Nxc3 {[%clk 0:13:51]} 15. Rxc3 {[%clk 0:10:57]}  Be4 {[%clk 0:13:51]} 16. Be5 {[%clk 0:10:57]}  Bh6 {[%clk 0:13:03]} 17. Ne1 {[%clk 0:07:30]}  Bxg2 {[%clk 0:13:03]} 18. Nxg2 {[%clk 0:07:30]}  Qd7 {[%clk 0:13:03]} 19. Bxb8 {[%clk 0:07:39]}  Rfxb8 {[%clk 0:11:08]} 20. e3 {[%clk 0:07:39]}  Rd8 {[%clk 0:11:08]} 21. Qc2 {[%clk 0:07:39]}  Rac8 {[%clk 0:10:38]} 22. b4 {[%clk 0:06:51]}  e5 {[%clk 0:07:27]} 23. dxe5 {[%clk 0:06:20]}  Qe7 {[%clk 0:07:27]} 24. Rxa3 {[%clk 0:06:20]}  Qxb4 {[%clk 0:07:27]} 25. Rc3 {[%clk 0:04:59]}  c5 {[%clk 0:06:45]} 26. Rb1 {[%clk 0:04:59]}  Qg4 {[%clk 0:06:45]} 27. h3 {[%clk 0:04:59]}  Qxh3 {[%clk 0:06:45]} 28. Rxc5 {[%clk 0:04:59]}  Rxc5 {[%clk 0:06:45]} 29. Qxc5 {[%clk 0:04:59]}  Qf5 {[%clk 0:06:45]} 30. Qxb5 {[%clk 0:05:15]}  Rd2 {[%clk 0:05:21]} 31. Rf1 {[%clk 0:05:15]}  Rxa2 {[%clk 0:05:29]} 32. Qd5 {[%clk 0:02:19]}  Rc2 {[%clk 0:05:22]} 33. Nh4 {[%clk 0:02:17]}  Qh3 {[%clk 0:05:22]} 34. Qd8+ {[%clk 0:02:17]}  Bf8 {[%clk 0:05:22]} 35. Rb1 {[%clk 0:01:30]}  Rc8 {[%clk 0:04:11]} 36. Qd5 {[%clk 0:01:30]}  Be7 {[%clk 0:04:11]} 37. Nf3 {[%clk 0:01:30]}  h5 {[%clk 0:04:11]} 38. Qe4 {[%clk 0:01:30]}  Kg7 {[%clk 0:03:13]} 39. Nd4 {[%clk 0:01:00]}  Qg4 {[%clk 0:03:13]} 40. Qf4 {[%clk 0:01:00]}  Bg5 {[%clk 0:01:29]} 41. Qxg4 {[%clk 0:00:36]}  hxg4 {[%clk 0:01:29]} 42. Rb7 {[%clk 0:00:36]}  Kg8 {[%clk 0:01:29]} 43. e6 {[%clk 0:00:36]}  f5 {[%clk 0:01:29]} 44. Kf1 {[%clk 0:00:36]}  Re8 {[%clk 0:01:29]} 45. Ke2 {[%clk 0:00:36]}  Bf6 {[%clk 0:01:29]} 46. Rb6 {[%clk 0:00:36]}  Kf8 {[%clk 0:01:29]} 47. Nb5 {[%clk 0:00:21]}  Rc8 {[%clk 0:00:59]} 48. Nd6 {[%clk 0:00:14]}  Rc2+ {[%clk 0:00:59]} 49. Kf1 {[%clk 0:00:28]}  Ke7 {[%clk 0:00:49]} 50. Nb5 {[%clk 0:00:28]}  Be5 {[%clk 0:00:49]} 51. Nd4 {[%clk 0:00:28]}  Bxd4 {[%clk 0:00:49]} 52. exd4 {[%clk 0:00:28]}  Rd2 {[%clk 0:00:49]} 53. Rb4 {[%clk 0:00:28]} 1/2-1/2


[Site "http://www.Chess.com"]